[Event "*** Titled Tuesday 3|2 Blitz"]
[Site "Chess.com"]
[Date "2014.12.30"]
[Round "8"]
[White "BeerLag"]
[Black "Vandros57"]
[Result "1-0"]
[WhiteElo "2154"]
[BlackElo "1842"]
[TimeControl "180+2"]
[EndTime "12:45:38 PST"]
[Termination "BeerLag won by resignation"]

1. e4 {[%clk 0:03:00]} 1... c5 {[%clk 0:02:57.6]} 2. Nf3 {[%clk 0:03:01.3]} 2...
d6 {[%clk 0:02:56.8]} 3. d4 {[%clk 0:03:02.8]} 3... cxd4 {[%clk 0:02:56.6]} 4.
Nxd4 {[%clk 0:03:04.7]} 4... Nf6 {[%clk 0:02:55.4]} 5. Nc3 {[%clk 0:03:06.1]}
5... Nc6 {[%clk 0:02:54.9]} 6. Be2 {[%clk 0:03:06.6]} 6... e5 {[%clk 0:02:53.6]}
7. Nb3 {[%clk 0:03:05.5]} 7... Be7 {[%clk 0:02:52.9]} 8. g4 {[%clk 0:03:06.1]}
8... Be6 {[%clk 0:02:36.4]} 9. Be3 {[%clk 0:02:59.2]} 9... a6 {[%clk 0:02:32]}
10. g5 {[%clk 0:02:53.1]} 10... Nd7 {[%clk 0:02:27.8]} 11. h4 {[%clk 0:02:52.2]}
11... Nc5 {[%clk 0:02:24.3]} 12. Nd5 {[%clk 0:02:49.5]} 12... Bxd5 {[%clk
0:02:07.9]} 13. Qxd5 {[%clk 0:02:50.1]} 13... Nxb3 {[%clk 0:02:02.4]} 14. axb3
{[%clk 0:02:49.3]} 14... O-O {[%clk 0:01:57.6]} 15. c3 {[%clk 0:02:48]} 15...
Qd7 {[%clk 0:01:46.3]} 16. h5 {[%clk 0:02:40.5]} 16... Qe6 {[%clk 0:01:42.9]}
17. Bc4 {[%clk 0:02:24.7]} 17... Qxd5 {[%clk 0:01:42.1]} 18. Bxd5 {[%clk
0:02:26.6]} 18... Kh8 {[%clk 0:01:33.9]} 19. Ke2 {[%clk 0:02:13.5]} 19... f5
{[%clk 0:01:33]} 20. gxf6 {[%clk 0:01:57.8]} 20... Bxf6 {[%clk 0:01:32.7]} 21.
h6 {[%clk 0:01:47.6]} 21... g6 {[%clk 0:01:28.1]} 22. b4 {[%clk 0:01:48.5]}
22... Rac8 {[%clk 0:01:22.8]} 23. Rad1 {[%clk 0:01:45.8]} 23... Be7 {[%clk
0:01:21.2]} 24. Bb6 {[%clk 0:01:42.8]} 24... Bd8 {[%clk 0:01:18.4]} 25. Be3
{[%clk 0:01:29.1]} 25... Bc7 {[%clk 0:01:08.9]} 26. Rhf1 {[%clk 0:01:22.4]}
26... Bb8 {[%clk 0:01:02.2]} 27. Bg5 {[%clk 0:01:16.4]} 27... Rce8 {[%clk
0:00:52.5]} 28. Rd3 {[%clk 0:00:57.6]} 28... Ne7 {[%clk 0:00:50.4]} 29. Bxb7
{[%clk 0:00:57.4]} 29... d5 {[%clk 0:00:39.5]} 30. Bxd5 {[%clk 0:00:55]} 30...
Nxd5 {[%clk 0:00:39]} 31. Rxd5 {[%clk 0:00:56.9]} 31... Ba7 {[%clk 0:00:31.9]}
32. f3 {[%clk 0:00:58.4]} 32... Kg8 {[%clk 0:00:28.9]} 33. Rd7 {[%clk
0:00:54.9]} 33... Rf7 {[%clk 0:00:28]} 34. Rfd1 {[%clk 0:00:54.3]} 34... Bb6
{[%clk 0:00:23.7]} 35. R7d6 {[%clk 0:00:40.9]} 35... Rb8 {[%clk 0:00:20.2]} 36.
Rc6 {[%clk 0:00:33.5]} 36... Kf8 {[%clk 0:00:19.7]} 37. Rd5 {[%clk 0:00:31.8]}
37... Bc7 {[%clk 0:00:15.4]} 38. Rxa6 {[%clk 0:00:32.4]} 38... Bb6 {[%clk
0:00:12.2]} 39. Rd6 {[%clk 0:00:27.1]} 39... Rfb7 {[%clk 0:00:10.2]} 40. Rf6+
{[%clk 0:00:22.2]} 40... Kg8 {[%clk 0:00:08]} 41. Re6 {[%clk 0:00:22.6]} 41...
Kf7 {[%clk 0:00:07.5]} 42. Rxe5 {[%clk 0:00:21]} 42... Rd7 {[%clk 0:00:06]} 43.
Rb5 {[%clk 0:00:19.6]} 43... Bc7 {[%clk 0:00:05.8]} 44. Rxb8 {[%clk 0:00:17.7]}
44... Bxb8 {[%clk 0:00:06.7]} 45. Rf6+ {[%clk 0:00:11.3]} 45... Kg8 {[%clk
0:00:06.7]} 46. Rb6 {[%clk 0:00:10.4]} 46... Be5 {[%clk 0:00:07]} 47. Re6 {[%clk
0:00:09.9]} 47... Bc7 {[%clk 0:00:07.2]} 48. b5 {[%clk 0:00:10.7]} 48... Bd8
{[%clk 0:00:07]} 49. Re8+ {[%clk 0:00:10.3]} 49... Kf7 {[%clk 0:00:07.4]} 50.
Rxd8 {[%clk 0:00:12.2]} 50... Rxd8 {[%clk 0:00:05.9]} 51. Bxd8 {[%clk
0:00:14.1]} 1-0

[Event "*** Titled Tuesday 3|2 Blitz"]
[Site "Chess.com"]
[Date "2014.12.30"]
[Round "8"]
[White "rhungaski"]
[Black "Yaacovn"]
[Result "1-0"]
[WhiteElo "2420"]
[BlackElo "2577"]
[TimeControl "180+2"]
[EndTime "12:45:43 PST"]
[Termination "rhungaski won by resignation"]

1. Nf3 {[%clk 0:02:59]} 1... Nf6 {[%clk 0:02:58.7]} 2. c4 {[%clk 0:02:58.4]}
2... b6 {[%clk 0:02:59.7]} 3. g3 {[%clk 0:02:59.3]} 3... Bb7 {[%clk 0:03:00.9]}
4. Bg2 {[%clk 0:03:01.2]} 4... g6 {[%clk 0:03:02.2]} 5. O-O {[%clk 0:03:02.1]}
5... Bg7 {[%clk 0:03:03.6]} 6. Nc3 {[%clk 0:03:03.1]} 6... O-O {[%clk
0:03:04.6]} 7. Re1 {[%clk 0:03:04]} 7... Ne4 {[%clk 0:03:04.6]} 8. Nxe4 {[%clk
0:03:05.1]} 8... Bxe4 {[%clk 0:03:06.5]} 9. d3 {[%clk 0:03:06]} 9... Bb7 {[%clk
0:03:07.8]} 10. e4 {[%clk 0:03:06.5]} 10... c5 {[%clk 0:03:09]} 11. d4 {[%clk
0:03:05.5]} 11... cxd4 {[%clk 0:03:09.3]} 12. Nxd4 {[%clk 0:03:07.4]} 12... Nc6
{[%clk 0:03:03.2]} 13. Be3 {[%clk 0:02:58.5]} 13... Nxd4 {[%clk 0:03:02]} 14.
Bxd4 {[%clk 0:02:59.5]} 14... Bxd4 {[%clk 0:03:02.4]} 15. Qxd4 {[%clk
0:03:01.4]} 15... d6 {[%clk 0:03:03.9]} 16. b3 {[%clk 0:03:00]} 16... Qc7 {[%clk
0:03:05]} 17. e5 {[%clk 0:02:55.5]} 17... dxe5 {[%clk 0:03:01.7]} 18. Qxe5
{[%clk 0:02:57.4]} 18... Qxe5 {[%clk 0:03:02.3]} 19. Rxe5 {[%clk 0:02:58.7]}
19... Bxg2 {[%clk 0:03:02.4]} 20. Kxg2 {[%clk 0:03:00.6]} 20... e6 {[%clk
0:03:03.6]} 21. c5 {[%clk 0:02:56.4]} 21... bxc5 {[%clk 0:02:55.4]} 22. Rxc5
{[%clk 0:02:58.3]} 22... Rfd8 {[%clk 0:02:56.9]} 23. Rac1 {[%clk 0:02:54.1]}
23... a5 {[%clk 0:02:54.3]} 24. R1c4 {[%clk 0:02:53.3]} 24... a4 {[%clk
0:02:31.8]} 25. b4 {[%clk 0:02:47.7]} 25... a3 {[%clk 0:02:19.1]} 26. b5 {[%clk
0:02:46.5]} 26... Kg7 {[%clk 0:02:13.8]} 27. b6 {[%clk 0:02:33.8]} 27... Rab8
{[%clk 0:01:40.1]} 28. Rb5 {[%clk 0:02:33.9]} 28... Rd6 {[%clk 0:01:23.1]} 29.
b7 {[%clk 0:02:28.7]} 29... Rd7 {[%clk 0:01:24.1]} 30. Rcb4 {[%clk 0:02:29.6]}
30... Kf8 {[%clk 0:01:22.6]} 31. Rb3 {[%clk 0:02:27.1]} 31... Ke7 {[%clk
0:01:21.6]} 32. R5b4 {[%clk 0:02:20.8]} 32... h5 {[%clk 0:01:16.2]} 33. h4
{[%clk 0:02:18.9]} 33... f5 {[%clk 0:01:15]} 34. Rb5 {[%clk 0:02:16.1]} 34...
Kf6 {[%clk 0:01:13.8]} 35. Kf3 {[%clk 0:02:12.1]} 35... Rc7 {[%clk 0:01:09.2]}
36. Rb6 {[%clk 0:02:08.3]} 36... Kf7 {[%clk 0:01:03.6]} 37. R3b4 {[%clk
0:02:02.7]} 37... e5 {[%clk 0:00:59.2]} 38. R4b5 {[%clk 0:01:59.3]} 38... Rc3+
{[%clk 0:00:55]} 39. Kg2 {[%clk 0:01:54.7]} 39... e4 {[%clk 0:00:51.2]} 40. Ra5
{[%clk 0:01:44.5]} 40... Rc7 {[%clk 0:00:50]} 41. Ra7 {[%clk 0:01:44.9]} 41...
Kg7 {[%clk 0:00:47.4]} 42. Kf1 {[%clk 0:01:45.1]} 42... Kh6 {[%clk 0:00:44.6]}
43. Ke2 {[%clk 0:01:44.8]} 43... Rc2+ {[%clk 0:00:41.9]} 44. Ke3 {[%clk
0:01:44.8]} 44... Rc3+ {[%clk 0:00:28.5]} 45. Kd4 {[%clk 0:01:40.3]} 45... Rc7
{[%clk 0:00:27.3]} 46. Ke5 {[%clk 0:01:38.4]} 46... Kg7 {[%clk 0:00:28.1]} 47.
Kf4 {[%clk 0:01:36.9]} 47... Kh6 {[%clk 0:00:25.9]} 48. Raa6 {[%clk 0:01:34.6]}
48... Rbxb7 {[%clk 0:00:22.7]} 49. Rxg6+ {[%clk 0:01:33.9]} 49... Kh7 {[%clk
0:00:24.2]} 50. Rh6+ {[%clk 0:01:35]} 50... Kg7 {[%clk 0:00:25.7]} 51. Rag6+
{[%clk 0:01:33.9]} 51... Kf7 {[%clk 0:00:27]} 52. Kg5 {[%clk 0:01:29.2]} 52...
Kf8 {[%clk 0:00:19.9]} 53. Rh8+ {[%clk 0:01:24.9]} 53... Kf7 {[%clk 0:00:21.2]}
54. Rxh5 {[%clk 0:01:23.4]} 54... f4 {[%clk 0:00:19.6]} 55. Rh7+ {[%clk
0:01:20]} 55... Kf8 {[%clk 0:00:20.8]} 56. Rxc7 {[%clk 0:01:17.7]} 56... Rxc7
{[%clk 0:00:22.7]} 57. Rf6+ {[%clk 0:00:58.7]} 57... Kg7 {[%clk 0:00:18.9]} 58.
Rxf4 {[%clk 0:00:57]} 58... Rc2 {[%clk 0:00:19.5]} 59. Rxe4 {[%clk 0:00:53.2]}
59... Rxf2 {[%clk 0:00:19.7]} 60. Re7+ {[%clk 0:00:52.5]} 60... Kf8 {[%clk
0:00:20.3]} 61. Ra7 {[%clk 0:00:52.6]} 61... Rxa2 {[%clk 0:00:21.3]} 62. g4
{[%clk 0:00:50.7]} 62... Ra1 {[%clk 0:00:19.6]} 63. h5 {[%clk 0:00:52.1]} 63...
a2 {[%clk 0:00:19.4]} 64. h6 {[%clk 0:00:53.7]} 64... Kg8 {[%clk 0:00:20]} 65.
Kg6 {[%clk 0:00:53.8]} 1-0

[Event "*** Titled Tuesday 3|2 Blitz"]
[Site "Chess.com"]
[Date "2014.12.30"]
[Round "8"]
[White "chessmachined"]
[Black "gumersindo"]
[Result "0-1"]
[WhiteElo "2137"]
[BlackElo "2122"]
[TimeControl "180+2"]
[EndTime "12:47:36 PST"]
[Termination "gumersindo won by checkmate"]

1. d4 {[%clk 0:02:57.2]} 1... d5 {[%clk 0:02:58.6]} 2. c4 {[%clk 0:02:53.7]}
2... c6 {[%clk 0:02:59.4]} 3. Nf3 {[%clk 0:02:54.7]} 3... Nf6 {[%clk 0:03:00]}
4. e3 {[%clk 0:02:56.3]} 4... a6 {[%clk 0:03:00.2]} 5. b3 {[%clk 0:02:51.4]}
5... dxc4 {[%clk 0:02:59]} 6. bxc4 {[%clk 0:02:52.4]} 6... e6 {[%clk 0:02:57.7]}
7. Bd3 {[%clk 0:02:52.7]} 7... c5 {[%clk 0:02:58.8]} 8. O-O {[%clk 0:02:52.3]}
8... Nc6 {[%clk 0:02:58.2]} 9. Bb2 {[%clk 0:02:51.2]} 9... cxd4 {[%clk
0:02:58.3]} 10. exd4 {[%clk 0:02:51.3]} 10... Be7 {[%clk 0:02:59.3]} 11. a3
{[%clk 0:02:44.4]} 11... O-O {[%clk 0:02:58.5]} 12. Nbd2 {[%clk 0:02:41.8]}
12... b6 {[%clk 0:02:55.2]} 13. Ne4 {[%clk 0:02:40.3]} 13... Bb7 {[%clk
0:02:53.7]} 14. Ng3 {[%clk 0:02:37.4]} 14... Na5 {[%clk 0:02:51.4]} 15. Bc3
{[%clk 0:02:35.9]} 15... Nc6 {[%clk 0:02:45.9]} 16. Qb3 {[%clk 0:02:20]} 16...
Rb8 {[%clk 0:02:38.1]} 17. Rab1 {[%clk 0:02:17]} 17... Ba8 {[%clk 0:02:38.2]}
18. Qa4 {[%clk 0:02:17.1]} 18... Bb7 {[%clk 0:02:21.5]} 19. Rfd1 {[%clk
0:02:14.9]} 19... Qc7 {[%clk 0:02:16.8]} 20. Be2 {[%clk 0:02:09.7]} 20... Rfd8
{[%clk 0:02:15.2]} 21. Ba1 {[%clk 0:02:09.1]} 21... Na5 {[%clk 0:02:13]} 22. Bc3
{[%clk 0:02:04.1]} 22... Bc6 {[%clk 0:02:12.1]} 23. Qc2 {[%clk 0:02:00.7]} 23...
Bxa3 {[%clk 0:02:08.7]} 24. Ne5 {[%clk 0:01:44.7]} 24... Be8 {[%clk 0:02:02.8]}
25. Bd3 {[%clk 0:01:38.3]} 25... Bd6 {[%clk 0:01:55.3]} 26. f4 {[%clk
0:01:38.8]} 26... b5 {[%clk 0:01:52.8]} 27. c5 {[%clk 0:01:33.7]} 27... Be7
{[%clk 0:01:53.1]} 28. Qa2 {[%clk 0:01:22.5]} 28... b4 {[%clk 0:01:52.1]} 29.
Bxb4 {[%clk 0:01:17.3]} 29... Nc6 {[%clk 0:01:52.1]} 30. Bc3 {[%clk 0:01:12.8]}
30... Nd5 {[%clk 0:01:44.7]} 31. Ba1 {[%clk 0:00:49.1]} 31... Nxf4 {[%clk
0:01:41.4]} 32. Nxc6 {[%clk 0:00:29.6]} 32... Bxc6 {[%clk 0:01:40.4]} 33. Bxa6
{[%clk 0:00:24.7]} 33... Nxg2 {[%clk 0:01:34.6]} 34. Qa3 {[%clk 0:00:18]} 34...
Nf4 {[%clk 0:01:31]} 35. Qe3 {[%clk 0:00:18.4]} 35... Nh3+ {[%clk 0:01:26.1]}
36. Kf1 {[%clk 0:00:19.8]} 36... Bg5 {[%clk 0:01:25.9]} 37. Qe2 {[%clk
0:00:19.9]} 37... Rxb1 {[%clk 0:01:20.8]} 38. Rxb1 {[%clk 0:00:20.7]} 38... Rb8
{[%clk 0:01:09.3]} 39. Rxb8+ {[%clk 0:00:20.9]} 39... Qxb8 {[%clk 0:01:09.6]}
40. Bd3 {[%clk 0:00:22.5]} 40... Qf4+ {[%clk 0:01:07.5]} 41. Ke1 {[%clk
0:00:23.5]} 41... Qc1+ {[%clk 0:01:06.8]} 42. Qd1 {[%clk 0:00:25]} 42... Qxd1+
{[%clk 0:01:05.7]} 43. Kxd1 {[%clk 0:00:26.9]} 43... Nf2+ {[%clk 0:01:05.3]} 44.
Ke2 {[%clk 0:00:28.7]} 44... Nxd3 {[%clk 0:01:04.8]} 45. Kxd3 {[%clk 0:00:30.6]}
45... Bf4 {[%clk 0:01:05]} 46. Bc3 {[%clk 0:00:31.9]} 46... f5 {[%clk
0:01:01.1]} 47. Be1 {[%clk 0:00:33.1]} 47... g6 {[%clk 0:01:01]} 48. Bf2 {[%clk
0:00:34.5]} 48... Kf7 {[%clk 0:01:02]} 49. Kc4 {[%clk 0:00:35.4]} 49... h5
{[%clk 0:01:02.6]} 50. h4 {[%clk 0:00:31.5]} 50... Kf6 {[%clk 0:01:01.3]} 51.
Kb4 {[%clk 0:00:32.2]} 51... Bd2+ {[%clk 0:01:01.5]} 52. Kc4 {[%clk 0:00:32.1]}
52... f4 {[%clk 0:01:01.7]} 53. Nf1 {[%clk 0:00:33.5]} 53... Bc1 {[%clk
0:01:01.9]} 54. d5 {[%clk 0:00:32.3]} 54... exd5+ {[%clk 0:01:00.9]} 55. Kb3
{[%clk 0:00:33.1]} 55... Kf5 {[%clk 0:01:01.3]} 56. Kc2 {[%clk 0:00:34.4]} 56...
Ba3 {[%clk 0:01:00.6]} 57. Kb3 {[%clk 0:00:35.6]} 57... Bc1 {[%clk 0:00:59.4]}
58. Kc2 {[%clk 0:00:33.7]} 58... Be3 {[%clk 0:00:59.1]} 59. Nxe3+ {[%clk
0:00:35.1]} 59... fxe3 {[%clk 0:00:59.9]} 60. Bxe3 {[%clk 0:00:37]} 60... Ke4
{[%clk 0:01:00.7]} 61. Bg5 {[%clk 0:00:35]} 61... d4 {[%clk 0:01:01.8]} 62. Bf6
{[%clk 0:00:33.9]} 62... Ke3 {[%clk 0:01:00.3]} 63. Bg5+ {[%clk 0:00:33.6]}
63... Ke2 {[%clk 0:01:01.3]} 64. Kc1 {[%clk 0:00:30.9]} 64... d3 {[%clk
0:01:00.2]} 65. Bd2 {[%clk 0:00:30.9]} 65... Kf3 {[%clk 0:00:59.7]} 66. Bg5
{[%clk 0:00:31.2]} 66... Ke2 {[%clk 0:01:00.1]} 67. Bd2 {[%clk 0:00:32.4]} 67...
Bb5 {[%clk 0:01:01.5]} 68. Bg5 {[%clk 0:00:32.7]} 68... Kf3 {[%clk 0:00:59.7]}
69. Kd2 {[%clk 0:00:33.2]} 69... Ke4 {[%clk 0:01:01]} 70. Be7 {[%clk 0:00:33.3]}
70... Kd4 {[%clk 0:00:59.9]} 71. Bd6 {[%clk 0:00:33]} 71... Ke4 {[%clk 0:00:54]}
72. Be7 {[%clk 0:00:34]} 72... Ke5 {[%clk 0:00:54.3]} 73. Bd6+ {[%clk
0:00:34.5]} 73... Ke6 {[%clk 0:00:55.1]} 74. Ke3 {[%clk 0:00:34.8]} 74... g5
{[%clk 0:00:54]} 75. hxg5 {[%clk 0:00:35.8]} 75... h4 {[%clk 0:00:52]} 76. Bf4
{[%clk 0:00:24.3]} 76... Kf5 {[%clk 0:00:47.6]} 77. g6 {[%clk 0:00:18.4]} 77...
d2 {[%clk 0:00:35.1]} 78. g7 {[%clk 0:00:15]} 78... d1=Q {[%clk 0:00:31]} 79.
g8=N {[%clk 0:00:15.5]} 79... Qd3+ {[%clk 0:00:31.2]} 80. Kf2 {[%clk 0:00:16.3]}
80... Qe2+ {[%clk 0:00:31.9]} 81. Kg1 {[%clk 0:00:10]} 81... Kxf4 {[%clk
0:00:30.4]} 82. Nh6 {[%clk 0:00:10.3]} 82... Bc6 {[%clk 0:00:26.9]} 83. Nf7
{[%clk 0:00:10.5]} 83... Qg2# {[%clk 0:00:27.2]} 0-1

[Event "*** Titled Tuesday 3|2 Blitz"]
[Site "Chess.com"]
[Date "2014.12.30"]
[Round "9"]
[White "gumersindo"]
[Black "jlandaw"]
[Result "0-1"]
[WhiteElo "2118"]
[BlackElo "2328"]
[TimeControl "180+2"]
[EndTime "12:54:48 PST"]
[Termination "jlandaw won by resignation"]

1. d4 {[%clk 0:03:00]} 1... d5 {[%clk 0:02:57.8]} 2. c4 {[%clk 0:03:00.7]} 2...
c6 {[%clk 0:02:59.3]} 3. Nf3 {[%clk 0:02:59.9]} 3... e6 {[%clk 0:03:00.6]} 4. e3
{[%clk 0:03:00.6]} 4... Nf6 {[%clk 0:02:59.2]} 5. Nc3 {[%clk 0:03:01.6]} 5...
Bd6 {[%clk 0:02:59.8]} 6. Qc2 {[%clk 0:03:02.2]} 6... O-O {[%clk 0:03:00.7]} 7.
b3 {[%clk 0:03:02.7]} 7... Nbd7 {[%clk 0:02:58.8]} 8. Be2 {[%clk 0:03:04]} 8...
Qe7 {[%clk 0:02:58.9]} 9. O-O {[%clk 0:03:04.7]} 9... b6 {[%clk 0:02:59]} 10.
Bb2 {[%clk 0:02:55.3]} 10... Bb7 {[%clk 0:02:58]} 11. Rac1 {[%clk 0:02:55.6]}
11... Rac8 {[%clk 0:02:58.6]} 12. Rfd1 {[%clk 0:02:57.2]} 12... dxc4 {[%clk
0:02:45]} 13. bxc4 {[%clk 0:02:53.4]} 13... e5 {[%clk 0:02:46]} 14. Bd3 {[%clk
0:02:23.7]} 14... Rfe8 {[%clk 0:02:33.6]} 15. Ne4 {[%clk 0:02:17.4]} 15... Nxe4
{[%clk 0:02:31.2]} 16. Bxe4 {[%clk 0:02:17.4]} 16... g6 {[%clk 0:02:31.9]} 17.
dxe5 {[%clk 0:02:16.9]} 17... Nxe5 {[%clk 0:02:32.8]} 18. Qc3 {[%clk 0:02:07.1]}
18... f6 {[%clk 0:02:23.8]} 19. Rc2 {[%clk 0:01:53.9]} 19... Rcd8 {[%clk
0:02:15]} 20. Nxe5 {[%clk 0:01:48.2]} 0-1

[Event "*** Titled Tuesday 3|2 Blitz"]
[Site "Chess.com"]
[Date "2014.12.30"]
[Round "9"]
[White "crisfoisor"]
[Black "bsmail"]
[Result "1-0"]
[WhiteElo "2148"]
[BlackElo "2124"]
[TimeControl "180+2"]
[EndTime "12:57:07 PST"]
[Termination "crisfoisor won by resignation"]

1. e4 {[%clk 0:03:00]} 1... c5 {[%clk 0:02:58.4]} 2. d4 {[%clk 0:03:00.4]} 2...
cxd4 {[%clk 0:02:59.4]} 3. c3 {[%clk 0:03:01.5]} 3... g6 {[%clk 0:03:00.4]} 4.
cxd4 {[%clk 0:03:01.4]} 4... d5 {[%clk 0:03:01.6]} 5. e5 {[%clk 0:03:00.1]} 5...
Nc6 {[%clk 0:03:02]} 6. Nc3 {[%clk 0:03:00.4]} 6... Bg7 {[%clk 0:03:02.8]} 7. f4
{[%clk 0:03:01.1]} 7... Nh6 {[%clk 0:03:01.9]} 8. Be2 {[%clk 0:02:54]} 8... O-O
{[%clk 0:03:02.1]} 9. h3 {[%clk 0:02:48.1]} 9... f6 {[%clk 0:03:02.4]} 10. Nf3
{[%clk 0:02:48.3]} 10... fxe5 {[%clk 0:03:03.1]} 11. fxe5 {[%clk 0:02:46.3]}
11... Nf5 {[%clk 0:03:01.1]} 12. O-O {[%clk 0:02:46.9]} 12... Ng3 {[%clk
0:03:01.6]} 13. Rf2 {[%clk 0:02:47.1]} 13... Nxe2+ {[%clk 0:03:02.8]} 14. Nxe2
{[%clk 0:02:46.7]} 14... Bf5 {[%clk 0:03:03.7]} 15. Bg5 {[%clk 0:02:43.6]} 15...
Be4 {[%clk 0:03:01.9]} 16. Qb3 {[%clk 0:02:29.1]} 16... Bxf3 {[%clk 0:02:57]}
17. Rxf3 {[%clk 0:02:28.5]} 17... Rxf3 {[%clk 0:02:58.2]} 18. Qxf3 {[%clk
0:02:28.3]} 18... Qd7 {[%clk 0:02:59.2]} 19. Rf1 {[%clk 0:02:25.7]} 19... Rf8
{[%clk 0:02:59.5]} 20. Qg4 {[%clk 0:02:21.6]} 20... Rxf1+ {[%clk 0:02:59.2]} 21.
Kxf1 {[%clk 0:02:21.7]} 21... Qxg4 {[%clk 0:03:00.9]} 22. hxg4 {[%clk
0:02:22.5]} 22... e6 {[%clk 0:03:02.8]} 23. Kf2 {[%clk 0:02:19.7]} 23... Kf7
{[%clk 0:03:03.9]} 24. Ke3 {[%clk 0:02:20.5]} 24... Bf8 {[%clk 0:03:04.3]} 25.
a3 {[%clk 0:02:19.6]} 25... b5 {[%clk 0:03:02.9]} 26. Kd3 {[%clk 0:02:19.6]}
26... a5 {[%clk 0:02:56.8]} 27. Nc3 {[%clk 0:02:09.5]} 27... b4 {[%clk
0:02:56.6]} 28. Nb5 {[%clk 0:02:09.8]} 28... a4 {[%clk 0:02:46.4]} 29. Bd2
{[%clk 0:02:04.1]} 29... b3 {[%clk 0:02:27.9]} 30. Nc3 {[%clk 0:02:00.8]} 30...
Na5 {[%clk 0:02:16.1]} 31. Nxa4 {[%clk 0:02:01.3]} 31... Nc4 {[%clk 0:02:17.3]}
32. Bc1 {[%clk 0:01:51.5]} 32... h5 {[%clk 0:02:11]} 33. gxh5 {[%clk 0:01:44.3]}
33... gxh5 {[%clk 0:02:12.9]} 34. Kc3 {[%clk 0:01:45.3]} 34... Kg6 {[%clk
0:02:14.3]} 35. Kxb3 {[%clk 0:01:45.7]} 35... Kf5 {[%clk 0:02:15.5]} 36. Kc3
{[%clk 0:01:45.6]} 36... Kg4 {[%clk 0:02:15.4]} 37. Nc5 {[%clk 0:01:37.3]} 37...
Kg3 {[%clk 0:02:09.6]} 38. Nxe6 {[%clk 0:01:37.7]} 38... Be7 {[%clk 0:02:09.8]}
39. Nf4 {[%clk 0:01:36.9]} 39... h4 {[%clk 0:02:09.5]} 40. Nxd5 {[%clk
0:01:37.3]} 40... Bd8 {[%clk 0:02:02.2]} 41. e6 {[%clk 0:01:35.6]} 41... Kxg2
{[%clk 0:02:02.8]} 42. Bf4 {[%clk 0:01:36.4]} 42... Kf3 {[%clk 0:01:51.4]} 43.
Kxc4 {[%clk 0:01:31.9]} 43... h3 {[%clk 0:01:51.4]} 44. Bb8 {[%clk 0:01:31.2]}
1-0

[Event "*** Titled Tuesday 3|2 Blitz"]
[Site "Chess.com"]
[Date "2014.12.30"]
[Round "9"]
[White "PauloCesarCosta"]
[Black "vinceyoung15"]
[Result "0-1"]
[WhiteElo "2048"]
[BlackElo "1993"]
[TimeControl "180+2"]
[EndTime "12:57:19 PST"]
[Termination "vinceyoung15 won on time"]

1. d4 {[%clk 0:02:57.5]} 1... e5 {[%clk 0:02:57.3]} 2. dxe5 {[%clk 0:02:57.1]}
2... f6 {[%clk 0:02:58.6]} 3. exf6 {[%clk 0:02:57.7]} 3... Nxf6 {[%clk
0:02:59.9]} 4. Nf3 {[%clk 0:02:58]} 4... Bc5 {[%clk 0:02:59.7]} 5. e3 {[%clk
0:02:56.7]} 5... O-O {[%clk 0:03:00]} 6. Nc3 {[%clk 0:02:45.6]} 6... d5 {[%clk
0:02:59.8]} 7. Be2 {[%clk 0:02:38]} 7... c6 {[%clk 0:03:01.3]} 8. O-O {[%clk
0:02:35.4]} 8... Bd6 {[%clk 0:02:59.3]} 9. b3 {[%clk 0:02:30.5]} 9... Qe8 {[%clk
0:02:57.3]} 10. a4 {[%clk 0:02:25.5]} 10... Bg4 {[%clk 0:02:57.4]} 11. Bb2
{[%clk 0:01:58.6]} 11... Qh5 {[%clk 0:02:57.2]} 12. g3 {[%clk 0:01:55.7]} 12...
Nbd7 {[%clk 0:02:49.3]} 13. Nd4 {[%clk 0:01:53.6]} 13... Qh3 {[%clk 0:02:43.3]}
14. f3 {[%clk 0:01:25.1]} 14... Bxg3 {[%clk 0:02:38.1]} 15. hxg3 {[%clk
0:01:23.7]} 15... Qxg3+ {[%clk 0:02:39.1]} 16. Kh1 {[%clk 0:01:24.6]} 16... Bh3
{[%clk 0:02:35.1]} 17. Rg1 {[%clk 0:01:16.9]} 17... Qh4 {[%clk 0:02:35.9]} 18.
Qe1 {[%clk 0:01:08.6]} 18... Qh6 {[%clk 0:02:24.2]} 19. Qg3 {[%clk 0:01:06.6]}
19... Rae8 {[%clk 0:02:09.9]} 20. Qh2 {[%clk 0:00:54.3]} 20... Qxe3 {[%clk
0:01:58.7]} 21. Qxh3 {[%clk 0:00:51.8]} 21... Qxd4 {[%clk 0:01:59.3]} 22. Qg3
{[%clk 0:00:41.4]} 22... Nh5 {[%clk 0:01:56.7]} 23. Qg4 {[%clk 0:00:37.2]} 23...
Rf4 {[%clk 0:01:54.4]} 24. Qg5 {[%clk 0:00:20]} 24... Qf2 {[%clk 0:01:50.3]} 25.
Qxg7+ {[%clk 0:00:06.6]} 25... Nxg7 {[%clk 0:01:49.6]} 26. Rxg7+ {[%clk
0:00:08.1]} 26... Kf8 {[%clk 0:01:49.6]} 0-1

[Event "*** Titled Tuesday 3|2 Blitz"]
[Site "Chess.com"]
[Date "2014.12.30"]
[Round "9"]
[White "ameet100"]
[Black "Irochka83"]
[Result "0-1"]
[WhiteElo "2388"]
[BlackElo "2330"]
[TimeControl "180+2"]
[EndTime "12:58:02 PST"]
[Termination "Irochka83 won by resignation"]

1. Nf3 {[%clk 0:03:00]} 1... d5 {[%clk 0:02:58.2]} 2. g3 {[%clk 0:03:01.1]} 2...
Bg4 {[%clk 0:02:57.8]} 3. Bg2 {[%clk 0:03:02.4]} 3... Nd7 {[%clk 0:02:58.8]} 4.
O-O {[%clk 0:03:03.6]} 4... e6 {[%clk 0:02:56.1]} 5. d3 {[%clk 0:03:03.8]} 5...
c6 {[%clk 0:02:55.2]} 6. Qe1 {[%clk 0:02:59.2]} 6... Bc5 {[%clk 0:02:47]} 7. e4
{[%clk 0:02:53.6]} 7... dxe4 {[%clk 0:02:47.8]} 8. dxe4 {[%clk 0:02:54.5]} 8...
e5 {[%clk 0:02:49.2]} 9. Nbd2 {[%clk 0:02:50.3]} 9... Ngf6 {[%clk 0:02:41.8]}
10. Nc4 {[%clk 0:02:51.1]} 10... Qe7 {[%clk 0:02:36.4]} 11. Nh4 {[%clk
0:01:57.7]} 11... O-O {[%clk 0:02:28.1]} 12. Ne3 {[%clk 0:01:58.4]} 12... Be6
{[%clk 0:02:12.6]} 13. Nef5 {[%clk 0:01:56.9]} 13... Qd8 {[%clk 0:02:12.5]} 14.
Bg5 {[%clk 0:01:57.6]} 14... Bc4 {[%clk 0:02:03.8]} 15. Rd1 {[%clk 0:01:44]}
15... Qb6 {[%clk 0:01:54.7]} 16. b3 {[%clk 0:01:35.9]} 16... Bxf1 {[%clk
0:01:50.4]} 17. Bxf1 {[%clk 0:01:26.4]} 17... g6 {[%clk 0:01:48]} 18. Nh6+
{[%clk 0:01:19.1]} 18... Kg7 {[%clk 0:01:46.1]} 19. Bc1 {[%clk 0:01:02.6]} 19...
Rad8 {[%clk 0:01:31.8]} 20. Qd2 {[%clk 0:00:50.5]} 20... Nxe4 {[%clk 0:01:23.4]}
21. N6f5+ {[%clk 0:00:45.1]} 21... gxf5 {[%clk 0:01:07.6]} 22. Qh6+ {[%clk
0:00:41]} 22... Kh8 {[%clk 0:01:09.1]} 23. Nxf5 {[%clk 0:00:25]} 23... Rg8
{[%clk 0:01:09.3]} 24. Kg2 {[%clk 0:00:25.8]} 24... Bf8 {[%clk 0:00:54.7]} 25.
Qh4 {[%clk 0:00:24.1]} 25... Qxf2+ {[%clk 0:00:53.2]} 26. Kh1 {[%clk 0:00:25.6]}
26... Qxf5 {[%clk 0:00:42.5]} 0-1